fUST/lending_fUST_20250827
["ID","MTS","AMOUNT","RATE_DAILY","PERIOD"]
[381566661,1756285845291,-480.0,0.00023166,2]
[381566662,1756285845300,-480.0,0.00023166,2]
[381566663,1756285845309,-480.0,0.00023166,2]
[381566664,1756285845318,-195.24168607,0.00023166,2]
[381566665,1756285845328,-480.0,0.00023166,2]
[381566666,1756285845337,-1381.94,0.00023166,2]
[381566667,1756285845346,-480.0,0.00023166,2]
[381566668,1756285845356,-480.0,0.00023166,2]
[381566669,1756285845365,-480.0,0.00023166,2]
[381566670,1756285845374,-480.0,0.00023166,2]
[381566671,1756285845383,-662.23,0.00023166,2]
[381566672,1756285845392,-1020.13,0.00023166,2]
[381566673,1756285845402,-524.45,0.00023166,2]
[381566674,1756285845411,-578.37,0.00023166,2]
[381566675,1756285845421,-590.89954147,0.00023166,2]
[381566676,1756285845430,-480.0,0.00023166,2]
[381566677,1756285845439,-605.68,0.00023166,2]
[381566678,1756285845449,-480.0,0.00023166,2]
[381566679,1756285845459,-480.0,0.00023166,2]
[381566680,1756285845468,-480.0,0.00023166,2]
[381566681,1756285845478,-480.0,0.00023166,2]
[381566682,1756285845487,-840.05,0.00023166,2]
[381566683,1756285845496,-553.41883093,0.00023166,2]
[381566684,1756285845506,-480.0,0.00023166,2]
[381566685,1756285845516,-480.0,0.00023166,2]
[381566686,1756285845526,-480.0,0.00023166,2]
[381566687,1756285845536,-624.75,0.00023166,2]
[381566688,1756285845545,-505.0,0.00023166,2]
[381566689,1756285845555,-781.52,0.00023166,2]
[381566690,1756285845564,-491.96,0.00023166,2]
[381566691,1756285845574,-480.0,0.00023166,2]
[381566692,1756285845583,-480.0,0.00023166,2]
[381566693,1756285845592,-460.50118696,0.00023166,2]
[381566694,1756285845601,-1465.99,0.00023166,2]
[381566695,1756285845611,-480.77786464,0.00023166,2]
[381566696,1756285845621,-480.0,0.00023166,2]
[381566697,1756285845630,-480.0,0.00023166,2]
[381566698,1756285845639,-934.27,0.00023166,2]
[381566699,1756285845649,-480.0,0.00023166,2]
[381566700,1756285845659,-480.0,0.00023166,2]
[381566701,1756285845668,-609.61,0.00023166,2]
[381566702,1756285845678,-480.0,0.00023166,2]
[381566703,1756285845688,-480.0,0.00023166,2]
[381566704,1756285845699,-807.48,0.00023166,2]
[381566705,1756285845708,-743.51,0.00023166,2]
[381566706,1756285845718,-669.06,0.00023166,2]
[381566707,1756285845728,-480.0,0.00023166,2]
[381566708,1756285845738,-480.0,0.00023166,2]
[381566709,1756285845747,-1289.28,0.00023166,2]
[381566710,1756285845757,-480.0,0.00023166,2]
[381566711,1756285845767,-480.0,0.00023166,2]
[381566712,1756285845776,-516.23,0.00023166,2]
[381566713,1756285845786,-1000.0,0.00023166,2]
[381566714,1756285845795,-480.0,0.00023166,2]
[381566715,1756285845805,-480.0,0.00023166,2]
[381566716,1756285845814,-901.21,0.00023166,2]
[381566717,1756285845824,-480.46856777,0.00023166,2]
[381566718,1756285845833,-480.0,0.00023166,2]
[381566719,1756285845843,-480.0,0.00023166,2]
[381566720,1756285845851,-480.0,0.00023166,2]
[381566721,1756285845860,-480.0,0.00023166,2]
[381566722,1756285845869,-480.0,0.00023166,2]
[381566723,1756285845880,-625.0,0.00023166,2]
[381566724,1756285845889,-722.63,0.00023166,2]
[381566725,1756285845898,-480.0,0.00023166,2]
[381566726,1756285845907,-480.80912596,0.00023166,2]
[381566727,1756285845916,-480.0,0.00023166,2]
[381566728,1756285845924,-849.45,0.00023166,2]
[381566729,1756285845932,-486.16,0.00023166,2]
[381566730,1756285845941,-480.0,0.00023166,2]
[381566731,1756285845950,-480.0,0.00023166,2]
[381566732,1756285845958,-480.0,0.00023166,2]
[381566733,1756285845968,-480.0,0.00023166,2]
[381566734,1756285845978,-968.86,0.00023166,2]
[381566735,1756285845987,-1060.07,0.00023166,2]
[381566736,1756285845996,-568.25,0.00023166,2]
[381566737,1756285846004,-615.02,0.00023166,2]
[381566738,1756285846013,-515.56,0.00023166,2]
[381566739,1756285846021,-480.0,0.00023166,2]
[381566740,1756285846030,-480.0,0.00023166,2]
[381566741,1756285846039,-781.98,0.00023166,2]
[381566743,1756285846049,-438.15749972,0.00023166,2]
[381566745,1756285846059,-784.01,0.00023166,2]
[381566746,1756285846068,-480.0,0.00023166,2]
[381566747,1756285846080,-480.0,0.00023166,2]
[381566748,1756285846090,-832.33,0.00023166,2]
[381566749,1756285846100,-480.0,0.00023166,2]
[381566750,1756285846110,-480.0,0.00023166,2]
[381566751,1756285846122,-480.0,0.00023166,2]
[381566752,1756285846132,-480.0,0.00023166,2]
[381566753,1756285846141,-480.0,0.00023166,2]
[381566754,1756285846151,-501.06,0.00023166,2]
[381566756,1756285846160,-480.0,0.00023166,2]
[381566758,1756285846171,-480.0,0.00023166,2]
[381566760,1756285846181,-204.3925277,0.00023166,2]
[381566762,1756285846190,-480.0,0.00023166,2]
[381566764,1756285846199,-1471.98,0.00023166,2]
[381566766,1756285846208,-480.0,0.00023166,2]
[381566768,1756285846217,-480.0,0.00023166,2]
[381566769,1756285846226,-480.0,0.00023166,2]
[381566770,1756285846235,-480.0,0.00023166,2]
[381566771,1756285846243,-480.0,0.00023166,2]
[381566772,1756285846251,-480.0,0.00023166,2]
[381566774,1756285846261,-480.0,0.00023166,2]
[381566776,1756285846271,-525.55,0.00023166,2]
[381566778,1756285846281,-503.83,0.00023166,2]
[381566780,1756285846291,-800.69,0.00023166,2]
[381566782,1756285846303,-550.42,0.00023166,2]
[381566784,1756285846312,-831.45,0.00023166,2]
[381566786,1756285846322,-938.52,0.00023166,2]
[381566788,1756285846332,-480.0,0.00023166,2]
[381566790,1756285846342,-480.0,0.00023166,2]
[381566792,1756285846352,-493.45,0.00023166,2]
[381566794,1756285846362,-427.76192171,0.00023166,2]
[381566796,1756285846372,-480.0,0.00023166,2]
[381566798,1756285846383,-480.0,0.00023166,2]
[381566800,1756285846392,-229.99228853,0.00023166,2]
[381566802,1756285846401,-480.0,0.00023166,2]
[381566804,1756285846410,-480.0,0.00023166,2]
[381566806,1756285846419,-926.66,0.00023166,2]
[381566808,1756285846429,-480.0,0.00023166,2]
[381566809,1756285846440,-863.4,0.00023166,2]
[381566810,1756285846450,-480.0,0.00023166,2]
[381566811,1756285846459,-800.84,0.00023166,2]
[381566812,1756285846469,-563.33,0.00023166,2]
[381566813,1756285846479,-480.0,0.00023166,2]
[381566814,1756285846489,-480.0,0.00023166,2]
[381566815,1756285846499,-480.0,0.00023166,2]
[381566816,1756285846508,-480.0,0.00023166,2]
[381566817,1756285846519,-943.39,0.00023166,2]
[381566819,1756285846529,-480.0,0.00023166,2]
[381566821,1756285846538,-480.0,0.00023166,2]
[381566823,1756285846548,-480.0,0.00023166,2]
[381566825,1756285846560,-480.0,0.00023166,2]
[381566827,1756285846570,-2384.24,0.00023166,2]
[381566829,1756285846580,-530.94,0.00023166,2]
[381566831,1756285846590,-480.0,0.00023166,2]
[381566833,1756285846599,-480.0,0.00023166,2]
[381566835,1756285846610,-13314.52,0.00023166,2]
[381566837,1756285846620,-480.0,0.00023166,2]
[381566839,1756285846630,-480.0,0.00023166,2]
[381566841,1756285846640,-510.64944722,0.00023166,2]
[381566843,1756285846650,-774.15,0.00023166,2]
[381566844,1756285846661,-480.0,0.00023166,2]
[381566845,1756285846671,-480.0,0.00023166,2]
[381566846,1756285846680,-706.24,0.00023166,2]
[381566847,1756285846690,-816.28,0.00023166,2]
[381566848,1756285846700,-480.0,0.00023166,2]
[381566849,1756285846710,-480.0,0.00023166,2]
[381566850,1756285846720,-480.0,0.00023166,2]
[381566851,1756285846730,-480.0,0.00023166,2]
[381566852,1756285846740,-1411.35,0.00023166,2]
[381566853,1756285846751,-480.0,0.00023166,2]
[381566854,1756285846761,-482.18923619,0.00023166,2]
[381566855,1756285846771,-480.86126734,0.00023166,2]
[381566856,1756285846781,-500.0,0.00023173,2]
[381566857,1756285846791,-500.0,0.00023173,2]
[381566858,1756285846802,-395.02903444,0.00023173,2]
[381566859,1756285846812,-500.0,0.00023173,2]
[381566860,1756285846822,-500.0,0.00023173,2]
[381566861,1756285846832,-500.0,0.00023173,2]
[381566862,1756285846842,-501.75680508,0.00023173,2]
[381566863,1756285846851,-500.0,0.00023173,2]
[381566864,1756285846861,-500.0,0.00023173,2]
[381566865,1756285846870,-500.0,0.00023173,2]
[381566866,1756285846881,-500.0,0.00023173,2]
[381566867,1756285846891,-500.0,0.00023173,2]
[381566868,1756285846901,-501.77756723,0.00023173,2]
[381566869,1756285846911,-500.0,0.00023173,2]
[381566870,1756285846921,-502.38680401,0.00023173,2]
[381566871,1756285846931,-500.0,0.00023173,2]
[381566872,1756285846941,-500.0,0.00023173,2]
[381566873,1756285846951,-500.0,0.00023173,2]
[381566874,1756285846961,-6514.82,0.000232,7]
[381566875,1756285846970,-91386.38,0.000232,7]
[381566876,1756285846980,-14696.75,0.000232,2]
[381566877,1756285846990,-151.0,0.000232,7]
[381566878,1756285847000,-151.0,0.000232,7]
[381566879,1756285847010,-151.0,0.000232,7]
[381566880,1756285847024,-151.0,0.000232,7]
[381566881,1756285847041,-151.0,0.000232,7]
[381566882,1756285847050,-292.09132,0.000232,7]
[381566883,1756285847060,-151.0,0.000232,7]
[381566884,1756285847069,-151.0,0.000232,7]
[381566885,1756285847079,-151.0,0.000232,7]
[381566886,1756285847091,-163.19812,0.000232,7]
[381566887,1756285847101,-151.0,0.000232,7]
[381566888,1756285847111,-151.748066,0.000232,7]
[381566889,1756285847120,-151.0,0.000232,7]
[381566890,1756285847132,-151.0,0.000232,7]
[381566891,1756285847141,-151.0,0.000232,7]
[381566892,1756285847151,-151.0,0.000232,7]
[381566893,1756285847162,-200.0,0.000232,7]
[381566894,1756285847171,-200.0,0.000232,7]
[381566895,1756285847181,-200.0,0.000232,7]
[381566896,1756285847190,-200.0,0.000232,7]
[381566897,1756285847199,-425.44119842,0.000232,7]
[381566898,1756285847209,-529.56067766,0.000232,7]
[381566899,1756285847219,-151.0,0.000232,7]
[381566900,1756285847230,-156.582629,0.000232,7]
[381566901,1756285847242,-151.0,0.000232,7]
[381566902,1756285847251,-151.0,0.000232,7]
[381566903,1756285847261,-151.0,0.000232,7]
[381566904,1756285847270,-300.546756,0.000232,7]
[381566905,1756285847280,-265.914854,0.000232,7]
[381566906,1756285847290,-151.0,0.000232,7]
[381566907,1756285847299,-265.914854,0.000232,7]
[381566908,1756285847309,-265.914854,0.000232,7]
[381566909,1756285847318,-160.0,0.000232,7]
[381566910,1756285847329,-265.914854,0.000232,7]
[381566911,1756285847339,-165.229524,0.000232,7]
[381566912,1756285847348,-251.306346,0.000232,7]
[381566913,1756285847357,-151.0,0.000232,7]
[381566914,1756285847367,-251.306346,0.000232,7]
[381566915,1756285847378,-151.0,0.000232,7]
[381566916,1756285847387,-251.306346,0.000232,7]
[381566917,1756285847397,-251.306346,0.000232,7]
[381566918,1756285847406,-151.0,0.000232,7]
[381566919,1756285847416,-244.594158,0.000232,7]
[381566920,1756285847425,-244.594158,0.000232,7]
[381566921,1756285847434,-244.594158,0.000232,7]
[381566922,1756285847444,-151.0,0.000232,7]
[381566923,1756285847454,-244.594158,0.000232,7]
[381566924,1756285847463,-151.498068,0.000232,7]
[381566925,1756285847473,-151.0,0.000232,7]
[381566926,1756285847483,-151.0,0.000232,7]
[381566927,1756285847493,-151.0,0.000232,7]
[381566928,1756285847503,-5017.61651194,0.00023201,2]
[381566929,1756285847512,-263.0,0.00023205,2]
[381566930,1756285847522,-2618.2481025,0.00023207,2]
[381566931,1756285847532,-480.0,0.00023261,2]
[381566932,1756285847542,-980.51,0.00023261,2]
[381566933,1756285847553,-319.70777967,0.00023261,2]
[381566934,1756285847562,-1507.06,0.00023261,2]
[381566935,1756285847572,-2202.7,0.00023261,2]
[381566936,1756285847581,-3390.88,0.00023261,2]
[381566937,1756285847591,-2715.12328229,0.00023262,2]
[381566938,1756285847600,-2133.04069438,0.00023262,2]
[381566939,1756285847610,-480.0,0.00023263,2]
[381566940,1756285847619,-480.0,0.00023263,2]
[381566941,1756285847632,-504.45,0.00023263,2]
[381566942,1756285847641,-480.0,0.00023263,2]
[381566943,1756285847651,-480.0,0.00023263,2]
[381566944,1756285847661,-1844.79,0.00023263,2]
[381566945,1756285847670,-695.09,0.00023263,2]
[381566946,1756285847856,-626.12,0.00023263,2]
[381566947,1756285847866,-480.0,0.00023263,2]
[381566948,1756285847877,-4054.27,0.00023263,2]
[381566949,1756285847887,-7453.14,0.00023263,2]
[381566950,1756285847897,-1277.04,0.00023263,2]
[381566951,1756285847906,-630.33,0.00023263,2]
[381566952,1756285847916,-2352.9,0.00023263,2]
[381566953,1756285847926,-481.5433723,0.00023263,2]
[381566954,1756285847936,-829.42,0.00023263,2]
[381566955,1756285847946,-1288.51,0.00023263,2]
[381566956,1756285847956,-5017.61651194,0.0002327,2]
[381566957,1756285847966,-529.16180517,0.00023295,2]
[381566958,1756285847976,-151.0,0.000233,10]
[381566959,1756285847986,-2879.9267934,0.00023317,2]
[381566960,1756285847996,-5017.61651194,0.0002334,2]
[381566961,1756285848005,-2736.5,0.00023351,2]
[381566962,1756285848016,-13159.72,0.00023351,2]
[381566963,1756285848026,-2907.02,0.00023351,2]
[381566964,1756285848036,-1048.47,0.00023351,2]
[381566965,1756285848046,-480.0,0.00023351,2]
[381566966,1756285848056,-480.0,0.00023351,2]
[381566967,1756285848066,-1176.8,0.00023351,2]
[381566968,1756285848076,-2885.07,0.00023351,2]
[381566969,1756285848089,-2661.7847724,0.00023353,2]
[381566970,1756285848099,-40417.7095761,0.0002339,2]
[381566971,1756285848109,-13963.0735257,0.0002339,2]
[381566972,1756285848119,-1023.3641541,0.0002339,2]
[381566973,1756285848132,-151.0,0.0002339,7]
[381566974,1756285848141,-151.0,0.0002339,7]
[381566975,1756285848151,-262.090749,0.0002339,7]
[381566976,1756285848161,-206.125945,0.0002339,7]
[381566977,1756285848171,-206.125945,0.0002339,7]
[381566978,1756285848181,-151.0,0.0002339,7]
[381566979,1756285848190,-206.125945,0.0002339,7]
[381566980,1756285848200,-206.125945,0.0002339,7]
[381566981,1756285848209,-151.0,0.0002339,7]
[381566982,1756285848219,-151.0,0.0002339,7]
[381566983,1756285848230,-151.0,0.0002339,7]
[381566984,1756285848240,-327.0,0.00023392,2]
[381566985,1756285848250,-480.0,0.00023394,2]
[381566986,1756285848259,-480.0,0.00023394,2]
[381566987,1756285848268,-480.0,0.00023394,2]
[381566988,1756285848278,-480.0,0.00023394,2]
[381566989,1756285848287,-415.90203473,0.00023394,2]
[381566990,1756285848297,-480.0,0.00023394,2]
[381566991,1756285848306,-1304.71,0.00023394,2]
[381566992,1756285848316,-500.0,0.00023395,2]
[381566993,1756285848326,-151.0,0.000234,10]
[381566994,1756285848335,-151.0,0.000234,8]
[381566995,1756285848345,-151.0,0.000234,6]
[381566996,1756285848355,-151.0,0.000234,8]
[381566997,1756285848365,-9187.56116362,0.00023426,2]
[381566998,1756285848376,-480.0,0.00023427,2]
[381566999,1756285848386,-480.0,0.00023427,2]
[381567000,1756285848396,-480.0,0.00023427,2]
[381567001,1756285848406,-541.47,0.00023427,2]
[381567002,1756285848416,-498.9,0.00023427,2]
[381567003,1756285848426,-563.3,0.00023427,2]
[381567004,1756285848435,-480.0,0.00023427,2]
[381567005,1756285848445,-480.0,0.00023427,2]
[381567006,1756285848454,-480.0,0.00023427,2]
[381567007,1756285848464,-480.0,0.00023427,2]
[381567008,1756285848474,-480.0,0.00023427,2]
[381567009,1756285848483,-720.79,0.00023427,2]
[381567010,1756285848493,-480.0,0.00023427,2]
[381567011,1756285848503,-480.0,0.00023427,2]
[381567012,1756285848512,-480.0,0.00023427,2]
[381567013,1756285848522,-480.0,0.00023427,2]
[381567014,1756285848532,-501.91,0.00023427,2]
[381567015,1756285848541,-480.0,0.00023427,2]
[381567016,1756285848551,-730.1,0.00023427,2]
[381567017,1756285848560,-702.89,0.00023427,2]
[381567018,1756285848570,-480.0,0.00023427,2]
[381567019,1756285848579,-565.76,0.00023427,2]
[381567020,1756285848589,-409.36984114,0.00023427,2]
[381567021,1756285848600,-674.26,0.00023427,2]
[381567022,1756285848610,-480.0,0.00023427,2]
[381567023,1756285848620,-679.8,0.00023427,2]
[381567024,1756285848631,-480.0,0.00023427,2]
[381567025,1756285848641,-480.0,0.00023427,2]
[381567026,1756285848651,-480.0,0.00023427,2]
[381567027,1756285848660,-480.0,0.00023427,2]
[381567028,1756285848670,-712.05,0.00023427,2]
[381567029,1756285848679,-480.0,0.00023427,2]
[381567030,1756285848689,-480.0,0.00023427,2]
[381567031,1756285848698,-480.0,0.00023427,2]
[381567032,1756285848708,-415.2432688,0.00023427,2]
[381567033,1756285848717,-979.4,0.00023427,2]
[381567034,1756285848726,-712.53,0.00023427,2]
[381567035,1756285848737,-1469.65,0.00023427,2]
[381567036,1756285848746,-480.0,0.00023427,2]
[381567037,1756285848756,-639.0,0.00023427,2]
[381567038,1756285848765,-480.0,0.00023427,2]
[381567039,1756285848775,-480.0,0.00023427,2]
[381567040,1756285848784,-480.0,0.00023427,2]
[381567041,1756285848794,-817.51,0.00023427,2]
[381567042,1756285848804,-480.0,0.00023427,2]
[381567043,1756285848814,-480.0,0.00023427,2]
[381567044,1756285848823,-672.32,0.00023427,2]
[381567045,1756285848833,-506.58,0.00023427,2]
[381567046,1756285848843,-4677.51,0.00023427,2]
[381567047,1756285848853,-480.0,0.00023427,2]
[381567048,1756285848862,-480.0,0.00023427,2]
[381567049,1756285848872,-2100.06,0.00023427,2]
[381567050,1756285848882,-480.0,0.00023427,2]
[381567051,1756285848893,-657.34,0.00023427,2]
[381567052,1756285848902,-480.0,0.00023427,2]
[381567053,1756285848912,-1882.32,0.00023427,2]
[381567054,1756285848921,-587.34,0.00023427,2]
[381567055,1756285848930,-2412.59,0.00023427,2]
[381567056,1756285848941,-480.0,0.00023427,2]
[381567057,1756285848951,-480.0,0.00023427,2]
[381567058,1756285848972,-495.16,0.00023427,2]
[381567059,1756285848993,-480.0,0.00023427,2]
[381567060,1756285849005,-246.16340142,0.00023427,2]
[381567061,1756285849016,-151.0,0.00023427,7]
[381567062,1756285849030,-480.0,0.00023427,2]
[381567063,1756285849040,-151.0,0.00023427,7]
[381567064,1756285849051,-151.0,0.00023427,7]
[381567065,1756285849060,-151.0,0.00023427,7]
[381567066,1756285849071,-265.914854,0.00023427,7]
[381567067,1756285849081,-480.0,0.00023427,2]
[381567068,1756285849096,-265.914854,0.00023427,7]
[381567069,1756285849106,-265.914854,0.00023427,7]
[381567070,1756285849115,-820.71,0.00023427,2]
[381567071,1756285849127,-265.914854,0.00023427,7]
[381567072,1756285849136,-480.0,0.00023427,2]
[381567073,1756285849146,-748.5,0.00023427,2]
[381567074,1756285849156,-480.0,0.00023427,2]
[381567075,1756285849167,-480.0,0.00023427,2]
[381567076,1756285849177,-549.5,0.00023427,2]
[381567077,1756285849187,-536.98,0.00023427,2]
[381567078,1756285849196,-251.306346,0.00023427,7]
[381567079,1756285849206,-151.0,0.00023427,7]
[381567080,1756285849216,-251.306346,0.00023427,7]
[381567081,1756285849225,-1687.19,0.00023427,2]
[381567082,1756285849235,-251.306346,0.00023427,7]
[381567083,1756285849245,-480.0,0.00023427,2]
[381567084,1756285849255,-251.306346,0.00023427,7]
[381567085,1756285849265,-151.0,0.00023427,7]
[381567086,1756285849274,-244.594158,0.00023427,7]
[381567087,1756285849284,-244.594158,0.00023427,7]
[381567088,1756285849294,-1124.67,0.00023427,2]
[381567089,1756285849304,-244.594158,0.00023427,7]
[381567090,1756285849313,-480.0,0.00023427,2]
[381567091,1756285849323,-244.594158,0.00023427,7]
[381567092,1756285849333,-939.76,0.00023427,2]
[381567093,1756285849343,-769.98,0.00023435,2]
[381567094,1756285849353,-973.37,0.00023435,2]
[381567095,1756285849363,-598.01,0.00023435,2]
[381567096,1756285849372,-480.0,0.00023435,2]
[381567097,1756285849382,-260.05766195,0.00023435,2]
[381567098,1756285849392,-480.0,0.00023435,2]
[381567099,1756285849401,-480.0,0.00023435,2]
[381567100,1756285849410,-480.0,0.00023435,2]
[381567101,1756285849419,-480.0,0.00023435,2]
[381567102,1756285849428,-480.0,0.00023435,2]
[381567103,1756285849438,-480.0,0.00023435,2]
[381567104,1756285849447,-480.0,0.00023435,2]
[381567105,1756285849456,-692.86,0.00023435,2]
[381567106,1756285849466,-480.0,0.00023435,2]
[381567107,1756285849475,-480.0,0.00023435,2]
[381567108,1756285849485,-823.54,0.00023435,2]
[381567109,1756285849494,-480.0,0.00023435,2]
[381567110,1756285849502,-480.0,0.00023435,2]
[381567111,1756285849512,-904.0,0.00023435,2]
[381567112,1756285849522,-539.95,0.00023435,2]
[381567113,1756285849532,-543.54,0.00023435,2]
[381567114,1756285849542,-480.0,0.00023435,2]
[381567115,1756285849551,-589.92,0.00023435,2]
[381567116,1756285849562,-480.0,0.00023435,2]
[381567117,1756285849573,-573.33,0.00023435,2]
[381567118,1756285849587,-518.46,0.00023435,2]
[381567119,1756285849597,-1072.36,0.00023435,2]
[381567120,1756285849606,-661.31,0.00023435,2]
[381567121,1756285849615,-480.0,0.00023435,2]
[381567122,1756285849624,-480.0,0.00023435,2]
[381567123,1756285849633,-1579.27,0.00023435,2]
[381567124,1756285849643,-480.0,0.00023435,2]
[381567125,1756285849653,-2289.21,0.00023435,2]
[381567126,1756285849663,-480.0,0.00023435,2]
[381567127,1756285849673,-1276.73,0.00023435,2]
[381567128,1756285849682,-494.4423398,0.00023435,2]
[381567129,1756285849691,-480.0,0.00023435,2]
[381567130,1756285849701,-480.0,0.00023435,2]
[381567131,1756285849710,-588.66,0.00023435,2]
[381567132,1756285849720,-480.0,0.00023435,2]
[381567133,1756285849730,-480.0,0.00023435,2]
[381567134,1756285849740,-480.0,0.00023435,2]
[381567135,1756285849749,-480.0,0.00023435,2]
[381567136,1756285849758,-480.0,0.00023435,2]
[381567137,1756285849767,-204.42580952,0.00023435,2]
[381567138,1756285849776,-638.04,0.00023435,2]
[381567139,1756285849785,-483.41,0.00023435,2]
[381567140,1756285849795,-565.0,0.00023435,2]
[381567141,1756285849804,-480.0,0.00023435,2]
[381567142,1756285849813,-500.0,0.00023435,2]
[381567143,1756285849822,-726.75,0.00023435,2]
[381567144,1756285849832,-151.0,0.00023435,7]
[381567145,1756285849841,-366.98054354,0.00023435,2]
[381567146,1756285849853,-737.76,0.00023435,2]
[381567147,1756285849873,-151.0,0.00023435,7]
[381567148,1756285849888,-480.0,0.00023435,2]
[381567149,1756285849899,-480.0,0.00023435,2]
[381567150,1756285849909,-247.81819865,0.00023435,2]
[381567151,1756285849918,-151.0,0.00023435,7]
[381567152,1756285849926,-151.0,0.00023435,7]
[381567153,1756285849935,-151.0,0.00023435,7]
[381567154,1756285849944,-151.0,0.00023435,7]
[381567155,1756285849954,-151.0,0.00023435,7]
[381567156,1756285849964,-755.95,0.00023435,2]
[381567157,1756285849974,-546.92,0.00023435,2]
[381567158,1756285849984,-480.0,0.00023435,2]
[381567159,1756285849993,-480.0,0.00023435,2]
[381567160,1756285850003,-1220.67,0.00023435,2]
[381567161,1756285850013,-480.0,0.00023435,2]
[381567162,1756285850022,-1004.72,0.00023435,2]
[381567163,1756285850031,-352.20667755,0.00023435,2]
[381567164,1756285850041,-383.11823652,0.00023435,2]
[381567165,1756285850050,-480.0,0.00023435,2]
[381567166,1756285850059,-624.24,0.00023435,2]
[381567167,1756285850068,-831.69,0.00023435,2]
[381567168,1756285850079,-151.0,0.00023435,7]
[381567169,1756285850090,-151.0,0.00023435,7]
[381567170,1756285850099,-1158.97,0.00023435,2]
[381567171,1756285850109,-480.0,0.00023435,2]
[381567172,1756285850118,-151.0,0.00023435,7]
[381567173,1756285850130,-894.53,0.00023435,2]
[381567174,1756285850139,-616.10998147,0.00023435,2]
[381567175,1756285850149,-578.64,0.00023435,2]
[381567176,1756285850159,-553.43,0.00023435,2]
[381567177,1756285850173,-200.0,0.00023435,7]
[381567178,1756285850183,-200.0,0.00023435,7]
[381567179,1756285850192,-200.0,0.00023435,7]
[381567180,1756285850202,-200.0,0.00023435,7]
[381567181,1756285850268,-480.0,0.00023435,2]
[381567182,1756285850277,-435.60249108,0.00023435,2]
[381567183,1756285850286,-1766.57,0.00023435,2]
[381567184,1756285850296,-518.24,0.00023435,2]
[381567185,1756285850305,-1075.97,0.00023435,2]
[381567186,1756285850315,-480.0,0.00023435,2]
[381567187,1756285850325,-480.0,0.00023435,2]
[381567188,1756285850334,-480.0,0.00023435,2]
[381567189,1756285850344,-420.0,0.00023435,2]
[381567190,1756285850353,-480.0,0.00023435,2]
[381567191,1756285850362,-480.0,0.00023435,2]
[381567192,1756285850371,-480.0,0.00023435,2]
[381567193,1756285850381,-580.93,0.00023435,2]
[381567194,1756285850390,-480.0,0.00023435,2]
[381567195,1756285850399,-481.50920451,0.00023435,2]
[381567196,1756285850408,-480.0,0.00023435,2]
[381567197,1756285850417,-604.48,0.00023435,2]
[381567198,1756285850426,-480.0,0.00023435,2]
[381567199,1756285850439,-912.71,0.00023435,2]
[381567200,1756285850458,-712.92,0.00023435,2]